bitfinex/quotes_BTCUSD_20241202
["timestamp","ask_amount","ask_price","bid_price","bid_amount"]
[1733172608622,0.25284521,95685.0,95684.0,0.000865]
[1733172608849,0.25611343,95685.0,95684.0,0.000865]
[1733172609074,0.26134277,95685.0,95684.0,0.000865]
[1733172609291,0.46134277,95685.0,95684.0,0.000865]
[1733172609522,0.48731052,95685.0,95684.0,0.000865]
[1733172609744,0.28731052,95685.0,95684.0,0.000865]
[1733172610185,0.28831052,95685.0,95684.0,0.000865]
[1733172611303,0.28308118,95685.0,95684.0,0.000865]
[1733172612017,0.28408118,95685.0,95684.0,0.000865]
[1733172613677,0.48408118,95685.0,95684.0,0.000865]
[1733172613926,0.359062,95665.0,95649.0,0.0008654]
[1733172615387,0.46349464,95665.0,95649.0,0.0008654]
[1733172616097,0.46776369,95665.0,95664.0,4e-07]
[1733172616332,0.474511,95665.0,95664.0,4e-07]
[1733172616562,0.472511,95665.0,95664.0,4e-07]
[1733172616796,0.53116758,95665.0,95664.0,4e-07]
[1733172617027,0.53839835,95665.0,95664.0,4e-07]
[1733172617281,0.52676269,95665.0,95664.0,4e-07]
[1733172617512,0.53299361,95665.0,95664.0,4e-07]
[1733172617797,0.53216758,95665.0,95664.0,4e-07]
[1733172618516,0.53316758,95665.0,95664.0,4e-07]
[1733172618961,0.53739857,95665.0,95664.0,4e-07]
[1733172619436,0.53839857,95665.0,95664.0,4e-07]
[1733172619659,0.53757639,95665.0,95664.0,4e-07]
[1733172620548,0.53857639,95665.0,95664.0,4e-07]
[1733172621061,1.06457639,95665.0,95664.0,4e-07]
[1733172623141,1.06439857,95665.0,95664.0,4e-07]
[1733172624243,1.06439857,95665.0,95596.0,0.2]
[1733172624244,0.209095,95650.0,95596.0,0.2]
[1733172624471,0.209095,95650.0,95572.0,0.209265]
[1733172624472,0.209126,95636.0,95622.0,0.0833]
[1733172624693,0.359126,95636.0,95622.0,0.0833]
[1733172625152,0.36453089,95636.0,95622.0,0.0833]
[1733172625384,0.36453089,95636.0,95618.0,0.0605898]
[1733172625385,0.4673761,95636.0,95618.0,0.0142898]
[1733172625612,0.47099169,95636.0,95618.0,0.0142898]
[1733172625918,0.51431345,95636.0,95618.0,0.0142898]
[1733172626009,0.51590052,95636.0,95618.0,0.0142898]
[1733172626703,0.52490052,95636.0,95618.0,0.0142898]
[1733172626919,0.51590052,95636.0,95618.0,0.0142898]
[1733172627157,0.51690052,95636.0,95618.0,0.0142898]
[1733172627416,0.51590052,95636.0,95618.0,0.0142898]
[1733172627900,0.51690062,95636.0,95618.0,0.0142898]
[1733172628411,0.51590062,95636.0,95618.0,0.0142898]
[1733172628663,0.72213306,95636.0,95635.0,6e-07]
[1733172629181,0.71581275,95636.0,95635.0,6e-07]
[1733172629441,0.72221764,95636.0,95635.0,6e-07]
[1733172629911,0.72078757,95636.0,95635.0,6e-07]
[1733172630146,0.72178757,95636.0,95635.0,6e-07]
[1733172630387,0.359163,95619.0,95618.0,0.01147138]
[1733172630851,0.36456789,95619.0,95618.0,0.01147138]
[1733172631109,0.40642689,95619.0,95618.0,0.01147138]
[1733172631832,0.40742689,95619.0,95618.0,0.01147138]
[1733172632563,0.40642689,95619.0,95618.0,0.01147138]
[1733172632800,0.43239464,95619.0,95618.0,0.01147138]
[1733172633041,0.43339464,95619.0,95618.0,0.01147138]
[1733172633516,0.42798975,95619.0,95618.0,0.01147138]
[1733172633772,0.42898975,95619.0,95618.0,0.01147138]
[1733172634011,0.42798975,95619.0,95618.0,0.01147138]
[1733172634261,0.42898975,95619.0,95618.0,0.01147138]
[1733172634490,0.42798975,95619.0,95618.0,0.01147138]
[1733172634744,0.53183496,95619.0,95618.0,0.01147138]
[1733172636254,0.53183496,95619.0,95618.0,0.01233768]
[1733172636480,0.05865658,95635.0,95618.0,0.01233768]
[1733172636481,0.00058707,95636.0,95618.0,0.23918289]
[1733172636704,0.00058707,95636.0,95627.0,0.0773]
[1733172636919,0.00058707,95636.0,95629.0,0.0773]
[1733172637137,0.00058707,95636.0,95628.0,0.1500959]
[1733172637138,0.00058707,95636.0,95630.0,0.1363848]
[1733172637374,0.20971407,95636.0,95631.0,0.0773]
[1733172637622,0.20971407,95636.0,95632.0,0.0454]
[1733172637623,0.209129,95635.0,95632.0,0.0454]
[1733172637840,0.418258,95635.0,95632.0,0.0454]
[1733172638074,0.418258,95635.0,95632.0,0.05292732]
[1733172638298,0.359132,95633.0,95632.0,0.05292732]
[1733172638514,0.45282861,95633.0,95632.0,0.05292732]
[1733172638772,0.359132,95633.0,95632.0,0.0454]
[1733172638996,0.359132,95633.0,95631.0,0.0773]
[1733172638997,0.15,95632.0,95631.0,0.0773]
[1733172639216,0.15,95632.0,95618.0,0.01233768]
[1733172639217,0.15,95632.0,95620.0,0.0773]
[1733172639431,0.209159,95621.0,95620.0,0.0773]
[1733172640852,0.209151,95625.0,95620.0,0.0773]
[1733172641063,0.001,95621.0,95620.0,0.0863]
[1733172641546,0.209156,95622.0,95620.0,0.0783]
[1733172641784,0.009,95621.0,95620.0,0.0783]
[1733172642794,0.018,95621.0,95620.0,0.0793]
[1733172643722,0.009,95621.0,95620.0,0.0783]
[1733172643971,0.209159,95621.0,95620.0,0.0863]
[1733172644209,0.218159,95621.0,95620.0,0.0783]
[1733172644659,0.227159,95621.0,95620.0,0.0793]
[1733172646075,0.018,95621.0,95620.0,0.08680708]
[1733172646342,0.15,95626.0,95620.0,0.08680708]
[1733172646798,0.418309,95623.0,95620.0,0.08680708]
[1733172647465,0.418309,95623.0,95620.0,0.08480708]
[1733172647652,0.418309,95623.0,95620.0,0.09280708]
[1733172647899,0.418309,95623.0,95620.0,0.10080708]
[1733172648120,0.418309,95623.0,95620.0,0.08480708]
[1733172648355,0.427309,95623.0,95620.0,0.08580708]
[1733172648561,0.436309,95623.0,95620.0,0.08680708]
[1733172649680,0.209159,95621.0,95620.0,0.08680708]
[1733172650376,0.43887824,95621.0,95620.0,0.00950708]
[1733172650593,0.54172345,95621.0,95620.0,0.00850708]
[1733172651029,0.54472345,95621.0,95620.0,0.00950708]
[1733172651747,0.55012834,95621.0,95620.0,0.00950708]
[1733172652181,0.55012834,95621.0,95576.0,0.209255]
[1733172652182,0.209194,95605.0,95565.0,0.31383446]
[1733172652411,0.209194,95605.0,95562.0,0.2]
[1733172652412,0.25284521,95604.0,95562.0,0.2]
[1733172652647,0.25284521,95604.0,95563.0,0.00185174]
[1733172652648,0.359202,95601.0,95563.0,0.00185174]
[1733172653562,0.35978871,95601.0,95563.0,0.00185174]
[1733172654018,0.35978871,95601.0,95600.0,0.00909]
[1733172654019,0.36078871,95601.0,95600.0,0.00909]
[1733172654254,0.36078871,95601.0,95585.0,0.0048532]
[1733172654255,0.15,95588.0,95585.0,0.0048532]
[1733172654470,0.359235,95586.0,95585.0,0.0048532]
[1733172654686,0.66208021,95586.0,95585.0,2e-07]
[1733172654919,0.7089613,95586.0,95585.0,2e-07]
[1733172655143,0.15,95576.0,95536.0,0.0008663]
[1733172655365,0.35,95574.0,95573.0,1e-06]
[1733172655586,0.45284521,95574.0,95573.0,1e-06]
[1733172656029,0.25284521,95574.0,95573.0,1e-06]
[1733172656274,0.33256445,95574.0,95573.0,1e-06]
[1733172656512,0.33256445,95574.0,95536.0,0.0008663]
[1733172656513,0.568528,95573.0,95536.0,0.0008663]
[1733172656722,0.15,95570.0,95536.0,0.0008663]
[1733172656931,0.10284521,95569.0,95536.0,0.0008663]
[1733172657146,0.359272,95569.0,95549.0,1.009]
[1733172657844,0.209262,95574.0,95560.0,0.108]
[1733172658061,0.00058635,95569.0,95560.0,0.108]
[1733172658947,0.00058635,95569.0,95560.0,0.054]
[1733172659207,0.00058635,95569.0,95551.0,0.4705]
[1733172659433,0.00158635,95569.0,95551.0,0.4705]
[1733172660143,0.00058635,95569.0,95551.0,0.4705]
[1733172660620,0.00158635,95569.0,95551.0,0.4705]
[1733172660846,0.00058635,95569.0,95552.0,0.00185229]
[1733172661765,0.00058635,95569.0,95555.0,0.209302]
[1733172661985,0.00058635,95569.0,95556.0,0.00185205]
[1733172662217,0.00058635,95569.0,95557.0,0.00185205]
[1733172662466,0.00158635,95569.0,95557.0,0.00185205]
[1733172662688,0.00158635,95569.0,95559.0,0.209293]
[1733172663179,0.00158635,95569.0,95555.0,0.209302]
[1733172663180,0.00158635,95569.0,95558.0,0.001852]
[1733172663444,0.00158635,95569.0,95555.0,0.001852]
[1733172663696,0.00158635,95569.0,95551.0,0.4705]
[1733172663940,0.00158635,95569.0,95552.0,0.00185205]
[1733172664650,0.00158635,95569.0,95568.0,0.10371151]
[1733172666018,0.00158635,95569.0,95568.0,0.35508616]
[1733172666285,0.00058635,95569.0,95568.0,0.35508616]
[1733172666547,0.00158635,95569.0,95568.0,0.0008663]
[1733172667516,0.00058635,95569.0,95568.0,0.0008663]
[1733172668507,0.10343156,95569.0,95568.0,3e-07]
[1733172668744,0.10343156,95569.0,95536.0,0.0008663]
[1733172668745,0.359336,95540.0,95536.0,0.0008663]
[1733172669002,0.209332,95542.0,95536.0,0.0008663]
[1733172669003,0.15,95539.0,95536.0,0.0008663]
[1733172669261,0.359338,95539.0,95536.0,0.0008663]
[1733172669501,0.568676,95539.0,95536.0,0.0008663]
[1733172670231,0.56926235,95539.0,95536.0,0.0008663]
[1733172670462,0.56926235,95539.0,95536.0,0.0048663]
[1733172671234,0.209361,95529.0,95512.0,0.209397]
[1733172671455,0.35992435,95539.0,95520.0,0.108]
[1733172671680,0.35992435,95539.0,95521.0,0.1046978]
[1733172671950,0.35992435,95539.0,95530.0,0.054]
[1733172671951,0.00058635,95539.0,95530.0,0.054]
[1733172672166,0.001,95539.0,95534.0,0.0226561]
[1733172672395,0.001,95539.0,95537.0,0.209341]
[1733172672626,0.209307,95554.0,95539.0,0.209338]
[1733172672845,0.209297,95558.0,95541.0,0.209334]
[1733172673121,0.409297,95558.0,95543.0,0.1269]
[1733172673367,0.209297,95558.0,95548.0,0.0816]
[1733172673620,0.3866239,95566.0,95544.0,0.10284521]
[1733172673621,0.20928,95566.0,95552.0,0.054]
[1733172673846,0.20928,95566.0,95556.0,0.0453]
[1733172673847,0.2,95566.0,95556.0,0.0453]
[1733172674104,0.2,95566.0,95557.0,0.18444521]
[1733172674317,0.209281,95565.0,95557.0,0.18444521]
[1733172675009,0.15,95570.0,95559.0,0.1228]
[1733172675261,0.0017342,95573.0,95557.0,0.10284521]
[1733172675262,0.0017342,95573.0,95562.0,0.209288]
[1733172675484,0.209266,95572.0,95564.0,0.1228]
[1733172675750,0.0017342,95573.0,95564.0,0.22564521]
[1733172675986,0.0017342,95573.0,95566.0,0.046]
[1733172676224,0.0017342,95573.0,95567.0,0.10284521]
[1733172676459,0.0017342,95573.0,95567.0,0.22564521]
[1733172676676,0.0017342,95573.0,95568.0,0.0768]
[1733172676958,0.209266,95572.0,95568.0,0.17964521]
[1733172677214,0.0027342,95573.0,95568.0,0.17974974]
[1733172677484,0.0027342,95573.0,95570.0,0.083]
[1733172677716,0.0027342,95573.0,95572.0,0.335866]
[1733172677969,0.0027342,95573.0,95572.0,0.22944521]
[1733172678236,0.0017342,95573.0,95572.0,0.22944521]
[1733172678681,0.0027342,95573.0,95572.0,0.22944521]
[1733172678901,0.0027342,95573.0,95572.0,0.30505428]
[1733172679091,0.0017342,95573.0,95572.0,0.30505428]
[1733172679352,0.0027342,95573.0,95572.0,0.30505428]
[1733172680058,0.0017342,95573.0,95572.0,0.30505428]
[1733172680290,0.0027342,95573.0,95572.0,0.30505428]
[1733172682732,0.0017342,95573.0,95572.0,0.30505428]
[1733172682949,0.0067342,95573.0,95572.0,0.30605428]
[1733172684779,0.0067342,95573.0,95572.0,0.32871038]
[1733172687375,0.0067342,95573.0,95572.0,0.30605428]
[1733172687599,0.0067342,95573.0,95572.0,0.23044521]
[1733172687835,0.0067342,95573.0,95572.0,0.43971121]
[1733172689469,0.1773439,95619.0,95582.0,0.545688]
[1733172689732,0.209165,95618.0,95601.0,0.1272]
[1733172689977,0.2,95619.0,95602.0,0.0018511]
[1733172690215,0.209192,95606.0,95602.0,0.10284521]
[1733172690700,0.209195,95605.0,95602.0,0.10284521]
[1733172691153,0.209195,95605.0,95602.0,0.10294974]
[1733172691384,0.209186,95609.0,95602.0,0.10294974]
[1733172691622,0.209187,95608.0,95602.0,0.10294974]
[1733172692063,0.009,95606.0,95602.0,0.10394974]
[1733172692574,0.209188,95608.0,95602.0,0.10294974]
[1733172693268,0.209179,95612.0,95602.0,0.10294974]
[1733172693736,0.209179,95612.0,95602.0,0.10394974]
[1733172693737,0.004,95608.0,95602.0,0.10394974]
[1733172694188,0.209179,95612.0,95602.0,0.10294974]
[1733172694644,0.213179,95612.0,95602.0,0.10394974]
[1733172695127,0.004,95612.0,95602.0,0.13786471]
[1733172695588,0.004,95612.0,95602.0,0.13886471]
[1733172695589,0.009,95608.0,95602.0,0.13886471]
[1733172695822,0.009,95608.0,95604.0,0.0472]
[1733172696107,0.009,95608.0,95606.0,0.209191]
[1733172696321,0.009,95608.0,95607.0,0.2302961]
[1733172696557,0.009,95608.0,95607.0,0.22844521]
[1733172696774,0.0017334,95624.0,95607.0,0.22844521]
[1733172696775,0.0017334,95624.0,95607.0,0.20567667]
[1733172696999,0.0017334,95624.0,95615.0,0.209172]
[1733172697226,0.0017334,95624.0,95616.0,0.10469602]
[1733172697469,0.0017334,95624.0,95616.0,0.10284521]
[1733172697691,0.00111036,95624.0,95617.0,0.209167]
[1733172697912,0.00111036,95624.0,95618.0,0.31201021]
[1733172698349,0.00211036,95624.0,95618.0,0.10284521]
[1733172699220,0.00211036,95624.0,95618.0,0.31201021]
[1733172699673,0.209126,95636.0,95618.0,0.31201021]
[1733172699674,0.14711036,95635.0,95618.0,0.31201021]
[1733172699891,0.14711036,95635.0,95619.0,0.08085982]
[1733172700109,0.1773439,95639.0,95620.0,0.10284521]
[1733172700110,0.209138,95631.0,95620.0,0.10284521]
[1733172700555,0.001,95624.0,95620.0,0.10284521]
[1733172700775,0.209135,95632.0,95624.0,0.00050498]
[1733172700996,0.001,95635.0,95625.0,0.10284521]
[1733172701225,0.001,95635.0,95628.0,0.054]
[1733172701226,0.002,95635.0,95628.0,0.054]
[1733172701445,0.001,95635.0,95629.0,0.10469589]
[1733172701664,0.007,95631.0,95629.0,0.10284521]
[1733172702632,0.216139,95631.0,95629.0,0.10284521]
[1733172702858,0.007,95631.0,95629.0,0.10284521]
[1733172704003,0.016,95631.0,95629.0,0.10384521]
[1733172704235,0.009,95631.0,95629.0,0.10384521]
[1733172705399,0.012,95631.0,95629.0,0.10484521]
[1733172706335,0.209088,95654.0,95633.0,0.0822]
[1733172706577,0.15,95650.0,95638.0,0.209121]
[1733172706798,0.15,95650.0,95640.0,0.209117]
[1733172707029,0.15,95650.0,95641.0,0.22604521]
[1733172707483,0.15,95651.0,95641.0,0.22604521]
[1733172707695,0.2,95652.0,95642.0,0.0393256]
[1733172707696,0.00058707,95650.0,95642.0,0.0393256]
[1733172707964,0.00058707,95650.0,95643.0,0.10284521]
[1733172708195,0.00058707,95650.0,95648.0,0.209098]
[1733172708420,0.00058707,95650.0,95649.0,0.10469546]
[1733172708421,0.00858707,95650.0,95649.0,0.10469546]
[1733172708647,0.00858707,95650.0,95649.0,0.43394221]
[1733172708914,0.00858707,95650.0,95649.0,0.22484521]
[1733172709147,0.00858707,95650.0,95649.0,0.29848259]
[1733172709383,0.00858707,95650.0,95649.0,0.22484521]
[1733172709640,0.00058707,95650.0,95649.0,0.10284521]
[1733172710538,0.00058707,95650.0,95649.0,0.10484521]
[1733172711224,0.00058707,95650.0,95649.0,0.002]
[1733172715915,0.00058707,95650.0,95649.0,0.10484521]
[1733172716370,0.00058707,95650.0,95649.0,0.16362973]
[1733172716817,0.00058707,95650.0,95649.0,0.15314521]
[1733172720977,0.00058707,95650.0,95649.0,0.23234521]
[1733172725029,0.00058707,95650.0,95649.0,0.44144221]
[1733172725261,0.00058707,95650.0,95649.0,0.46409831]
[1733172725720,0.0761,95692.0,95649.0,0.46409831]
[1733172725721,0.00326787,95686.0,95659.0,0.0226561]
[1733172725949,0.2,95689.0,95664.0,0.337065]
[1733172726174,0.209005,95692.0,95664.0,0.43991021]
[1733172726406,0.1773439,95697.0,95664.0,0.43991021]
[1733172726407,0.2,95690.0,95664.0,0.43991021]
[1733172726631,0.209003,95693.0,95664.0,0.46256631]
[1733172726632,0.00326758,95691.0,95664.0,0.46256631]
[1733172726875,0.2,95692.0,95664.0,0.46256631]
[1733172727096,0.00326756,95691.0,95664.0,0.46256631]
[1733172727546,0.208986,95701.0,95664.0,0.46256631]
[1733172727771,0.21225347,95701.0,95664.0,0.46256631]
[1733172727996,0.208993,95697.0,95668.0,0.3597121]
[1733172728272,0.208993,95697.0,95668.0,1.34012574]
[1733172728496,0.208986,95701.0,95668.0,1.34012574]
[1733172728720,0.208993,95697.0,95668.0,1.34012574]
[1733172729398,0.209001,95694.0,95668.0,1.34012574]
[1733172729838,0.208994,95697.0,95668.0,1.34012574]
[1733172730292,0.208986,95700.0,95668.0,1.34112574]
[1733172730519,0.208984,95701.0,95668.0,1.34112574]
[1733172731424,0.208994,95697.0,95668.0,1.34112574]
[1733172731868,0.208984,95701.0,95668.0,1.34112574]
[1733172732090,0.208993,95697.0,95668.0,1.34112574]
[1733172734175,0.208989,95699.0,95668.0,1.34112574]
[1733172737658,0.208999,95695.0,95668.0,1.34112574]
[1733172737881,0.208989,95699.0,95668.0,1.34112574]
[1733172740358,0.208997,95695.0,95668.0,1.34112574]
[1733172740834,0.208989,95699.0,95668.0,1.34112574]
[1733172741330,0.208998,95695.0,95668.0,1.34112574]
[1733172741797,0.208989,95699.0,95668.0,1.34112574]
[1733172742250,0.2107118,95703.0,95668.0,1.34112574]
[1733172742476,0.00499706,95702.0,95668.0,1.34112574]
[1733172742949,0.00499706,95702.0,95694.0,0.0824]
[1733172743179,0.0017296,95702.0,95695.0,0.00184935]
[1733172743411,0.0017296,95702.0,95695.0,0.10469456]
[1733172743639,0.0017296,95702.0,95696.0,0.13670025]
[1733172744359,0.14980703,95706.0,95696.0,0.13680478]
[1733172744587,0.20892739,95705.0,95696.0,0.13680478]
[1733172744844,0.14975942,95706.0,95696.0,0.13680478]
[1733172745156,0.14975942,95706.0,95697.0,0.02655048]
[1733172745389,0.14943302,95706.0,95698.0,0.10284521]
[1733172745852,0.0017334,95717.0,95698.0,0.10284521]
[1733172746094,0.0017334,95717.0,95699.0,0.00184922]
[1733172746095,0.00500038,95715.0,95699.0,0.00184922]
[1733172746325,0.00500038,95715.0,95697.0,0.02655048]
[1733172746326,0.00500038,95715.0,95700.0,0.19254387]
[1733172746560,0.0017334,95715.0,95700.0,0.40152987]
[1733172747265,0.00131179,95715.0,95700.0,0.19254387]
[1733172747493,0.15,95715.0,95700.0,0.19254387]
[1733172747753,0.00326697,95715.0,95700.0,0.31780622]
[1733172747989,0.0017334,95717.0,95716.0,0.00137798]
[1733172748215,0.0017334,95717.0,95716.0,0.10422319]
[1733172748443,0.0017334,95717.0,95716.0,0.10452349]
[1733172749592,0.0017334,95717.0,95716.0,0.10461851]
[1733172749811,0.0017334,95717.0,95716.0,0.11608036]
[1733172750493,0.65593471,95717.0,95716.0,0.0037733]
[1733172750728,0.65593471,95717.0,95716.0,0.0027733]
[1733172750976,0.65379666,95717.0,95716.0,0.0037733]
[1733172751205,0.6590238,95717.0,95716.0,0.0037733]
[1733172751670,0.6590238,95717.0,95716.0,0.0027733]
[1733172751914,0.42925276,95717.0,95716.0,0.0017863]
[1733172752145,0.34735276,95717.0,95716.0,0.0017863]
[1733172752391,0.34735276,95717.0,95716.0,0.0097863]
[1733172753563,0.34835276,95717.0,95716.0,0.0187863]
[1733172754057,0.34835276,95717.0,95716.0,0.0097863]
[1733172754282,0.35457996,95717.0,95716.0,0.018486]
[1733172754735,0.35357996,95717.0,95716.0,0.009486]
[1733172754968,0.35457996,95717.0,95716.0,0.018486]
[1733172755197,0.16222744,95717.0,95716.0,0.01839098]
[1733172755420,0.34935276,95717.0,95716.0,0.01839098]
[1733172755650,0.35457996,95717.0,95716.0,0.01839098]
[1733172755873,0.35457996,95717.0,95716.0,0.01925438]
[1733172756358,0.35458012,95717.0,95716.0,0.01925438]
[1733172757310,0.35131312,95717.0,95716.0,0.01925438]
[1733172757547,0.35458012,95717.0,95716.0,0.01925438]
[1733172757779,0.0122276,95717.0,95716.0,0.01925438]
[1733172758242,0.0070004,95717.0,95716.0,0.01925438]
[1733172759706,0.0070004,95717.0,95716.0,0.12209959]
[1733172759935,0.0037334,95717.0,95716.0,0.15520615]
[1733172760171,0.0037334,95717.0,95716.0,0.12209959]
[1733172760663,0.0017334,95717.0,95716.0,0.10409959]
[1733172760891,0.0017334,95717.0,95716.0,0.10509959]
[1733172760892,0.0097334,95717.0,95716.0,0.10509959]
[1733172761119,0.0177334,95717.0,95716.0,0.10609959]
[1733172761359,0.0097334,95717.0,95716.0,0.14930555]
[1733172761600,0.0167334,95717.0,95716.0,0.15030555]
[1733172761837,0.0167334,95717.0,95716.0,0.15115454]
[1733172762307,0.0167334,95717.0,95716.0,0.14930555]
[1733172762586,0.0167334,95717.0,95716.0,0.15030555]
[1733172763115,0.0167334,95717.0,95716.0,0.10509959]
[1733172763867,0.0167334,95717.0,95716.0,0.00225438]
[1733172764075,0.3477363,95717.0,95716.0,0.00325438]
[1733172764303,0.54531599,95717.0,95716.0,0.00325438]
[1733172764995,0.52992374,95717.0,95716.0,0.00225438]
[1733172765226,0.52992374,95717.0,95716.0,0.01125438]
[1733172765465,0.52992374,95717.0,95716.0,0.01025438]
[1733172765710,0.53092374,95717.0,95716.0,0.01925438]
[1733172766679,0.35357984,95717.0,95716.0,0.01925438]
[1733172766909,0.52569657,95717.0,95716.0,0.01925438]
[1733172767656,0.15600015,95717.0,95716.0,0.01925438]
[1733172767888,0.00600015,95717.0,95716.0,0.01925438]
[1733172768111,0.00600015,95717.0,95716.0,0.01812908]
[1733172770655,0.18334405,95717.0,95716.0,0.01812908]
[1733172770882,0.52569657,95717.0,95716.0,0.01812908]
[1733172772477,0.34835267,95717.0,95716.0,0.01812908]
[1733172772703,0.00600015,95717.0,95716.0,0.01812908]
[1733172774121,0.19835267,95717.0,95716.0,0.01812908]
[1733172774355,0.60575055,95717.0,95716.0,0.01812908]
[1733172774582,0.61097737,95717.0,95716.0,0.01812908]
[1733172775989,0.53092339,95717.0,95716.0,0.01812908]
[1733172777546,0.52242982,95717.0,95716.0,0.01812908]
[1733172777761,0.53092428,95717.0,95716.0,0.01812908]
[1733172780042,0.53133131,95717.0,95716.0,0.01812908]
[1733172781426,0.53033131,95717.0,95716.0,0.00912908]
[1733172781654,0.63316277,95717.0,95716.0,0.00012908]
[1733172781909,0.63516277,95717.0,95716.0,0.01812908]
[1733172782139,0.53233131,95717.0,95716.0,0.00912908]
[1733172782361,0.53133131,95717.0,95716.0,0.00912908]
[1733172782601,0.53233131,95717.0,95716.0,0.01812908]
[1733172783066,0.53233131,95717.0,95696.0,2.1e-07]
[1733172783067,0.65798842,95697.0,95696.0,2.1e-07]
[1733172783293,0.80798842,95697.0,95696.0,2.1e-07]
[1733172783528,0.91494447,95697.0,95696.0,2.1e-07]
[1733172784045,0.91533775,95697.0,95696.0,2.1e-07]
[1733172784495,0.91633775,95697.0,95696.0,0.00900021]
[1733172784714,0.9215659,95697.0,95696.0,0.00900021]
[1733172784960,0.9205659,95697.0,95696.0,2.1e-07]
[1733172785876,0.73718416,95697.0,95696.0,2.1e-07]
[1733172786109,0.78528416,95697.0,95696.0,2.1e-07]
[1733172786344,0.78853444,95697.0,95696.0,0.01800021]
[1733172786575,0.78853444,95697.0,95696.0,0.00900021]
[1733172786576,0.78753444,95697.0,95696.0,0.00900021]
[1733172786811,0.8668357,95697.0,95696.0,0.00900021]
[1733172787033,0.96966716,95697.0,95696.0,0.00900021]
[1733172787706,0.96866716,95697.0,95696.0,2.1e-07]
[1733172787918,0.8187357,95697.0,95696.0,0.00300021]
[1733172788132,0.8197357,95697.0,95696.0,0.01200021]
[1733172789937,0.8197357,95697.0,95696.0,0.00900021]
[1733172789938,0.8187357,95697.0,95696.0,0.00900021]
[1733172790170,0.8197357,95697.0,95696.0,0.01800021]
[1733172790629,0.73494308,95697.0,95696.0,0.01800021]
[1733172790852,0.5836928,95697.0,95696.0,0.01800021]
[1733172791370,0.5836928,95697.0,95696.0,0.01886381]
[1733172791742,0.58042472,95697.0,95696.0,0.01886381]
[1733172792161,0.73042472,95697.0,95696.0,0.01886381]
[1733172792373,0.73369246,95697.0,95696.0,0.01886381]
[1733172793717,0.83652392,95697.0,95696.0,0.01886381]
[1733172793924,0.84175266,95697.0,95696.0,0.01886381]
[1733172794352,0.7389212,95697.0,95696.0,0.01886381]
[1733172795244,0.01049648,95697.0,95696.0,0.01886381]
[1733172795455,0.002,95697.0,95696.0,0.12170902]
[1733172796096,0.002,95697.0,95696.0,0.12355831]
[1733172796308,0.001,95697.0,95696.0,0.11455831]
[1733172796520,0.001,95697.0,95696.0,0.14691414]
[1733172796725,0.01,95697.0,95696.0,0.14791414]
[1733172797589,0.009,95697.0,95696.0,0.13891414]
[1733172798020,0.018,95697.0,95696.0,0.13991414]
[1733172798438,0.009,95697.0,95696.0,0.13891414]
[1733172798654,0.011,95697.0,95696.0,0.13991414]
[1733172799369,0.011,95697.0,95696.0,0.13806485]
[1733172799582,0.011,95697.0,95696.0,0.00286381]
[1733172800461,0.011,95697.0,95696.0,0.10570902]
[1733172801327,0.15,95704.0,95698.0,4.989]
[1733172801535,0.15,95704.0,95699.0,0.10284521]
[1733172801748,0.15,95704.0,95700.0,0.10283146]
[1733172801978,0.15,95712.0,95701.0,0.10284521]
[1733172802387,0.15,95710.0,95701.0,0.10284521]
[1733172802605,0.009,95704.0,95701.0,0.10284521]
[1733172802833,0.018,95704.0,95702.0,7.571e-05]
[1733172803039,0.009,95704.0,95703.0,0.20567667]
[1733172803895,0.15,95715.0,95704.0,7.571e-05]
[1733172804117,0.15,95713.0,95705.0,0.10284521]
[1733172804537,0.15,95713.0,95706.0,7.571e-05]
[1733172804742,0.15,95713.0,95707.0,0.10284521]
[1733172805226,0.208952,95716.0,95707.0,0.10284521]
[1733172805227,0.15,95715.0,95707.0,0.10284521]
[1733172805436,0.15,95715.0,95708.0,7.571e-05]
[1733172805641,0.15,95715.0,95709.0,0.10284521]
[1733172806268,0.15,95715.0,95710.0,7.571e-05]
[1733172806529,0.15,95713.0,95710.0,0.10292092]
[1733172807366,0.15,95713.0,95711.0,0.10284521]
[1733172807590,0.15,95715.0,95711.0,0.1133373]
[1733172807807,0.20896,95712.0,95711.0,0.1133373]
[1733172808016,0.35888429,95712.0,95711.0,0.10284521]
[1733172808446,0.15,95711.0,95710.0,0.009]
[1733172809736,0.15,95709.0,95703.0,0.4685]
[1733172809947,0.208968,95708.0,95704.0,0.20567667]
[1733172810159,0.15,95707.0,95704.0,0.20567667]
[1733172810420,0.15,95705.0,95704.0,0.20567667]
[1733172810831,0.15,95707.0,95704.0,0.20567667]
[1733172811243,0.15,95705.0,95704.0,0.20567667]
[1733172811456,0.15,95707.0,95704.0,0.20567667]
[1733172811682,0.15,95707.0,95704.0,0.20667667]
[1733172811887,0.009,95705.0,95704.0,0.20667667]
[1733172812298,0.009,95705.0,95704.0,0.10384521]
[1733172812940,0.15,95707.0,95704.0,0.10284521]
[1733172813168,0.15,95707.0,95704.0,0.10384521]
[1733172813383,0.159,95707.0,95704.0,0.10484521]
[1733172813596,0.159,95707.0,95704.0,0.10384521]
[1733172813808,0.208966,95709.0,95705.0,0.01606495]
[1733172814018,0.15,95708.0,95706.0,0.10284521]
[1733172814940,0.009,95707.0,95706.0,0.10284521]
[1733172815595,0.367971,95707.0,95706.0,0.10284521]
[1733172816041,0.72840772,95705.0,95704.0,0.0018634]
[1733172816257,0.72840772,95705.0,95650.0,0.12526235]
[1733172816258,0.72842072,95699.0,95698.0,4.98377786]
[1733172817131,0.55107682,95699.0,95698.0,4.98377786]
[1733172817345,0.72842072,95699.0,95698.0,4.98377786]
[1733172817561,0.5373319,95699.0,95698.0,4.99277786]
[1733172817806,0.72942072,95699.0,95698.0,4.99277786]
[1733172818055,0.55207682,95699.0,95698.0,4.99277786]
[1733172818275,0.55107682,95699.0,95698.0,4.98377786]
[1733172818517,0.83125218,95699.0,95698.0,4.96287886]
[1733172818752,0.93736514,95699.0,95698.0,4.77478786]
[1733172818988,0.94351713,95699.0,95698.0,4.77010063]
[1733172819204,0.94351713,95699.0,95698.0,4.77910063]
[1733172819435,0.94351713,95699.0,95698.0,4.77010063]
[1733172819664,1.18251713,95699.0,95698.0,4.77910063]
[1733172819860,1.18251713,95699.0,95698.0,4.72830263]
[1733172820100,1.37351713,95699.0,95698.0,4.66560563]
[1733172820318,1.37451713,95699.0,95698.0,4.67560563]
[1733172820786,1.37451713,95699.0,95698.0,4.59200963]
[1733172820989,1.37451713,95699.0,95698.0,4.57111063]